Cogmind - Beta 15 @@@ ROGUE MODE // 2025.05.09 @ 17:56:11 Player: Anting Result: Destroyed by SQ-092(j) with Overtuned Pulse Rifle Performance ------------- Evolutions (0) 0 Regions Visited (4) 800 Robots Destroyed (12) 60 Value Destroyed (396) 396 Prototype IDs (3) 60 Alien Tech Used (0) 0 Bonus (300) 300 TOTAL SCORE: 1616 Bonus ------- Registered with UFD 300 Cogmind --------- Core Integrity 0/250 Matter 300/300 Energy 55/100 System Corruption 0% Temperature Hot (202) Movement Treading (340) Ox2 Location -9/Scraptown Parts ------- > --- POWER (1) -------- Subdweller Power Source > --- PROPULSION (2) --- Light Treads Spiked Treads > --- UTILITY (2) ------ Huge Storage Unit Core Shielding > --- WEAPON (2) ------- Subdweller Beam Cannon Subdweller Machine Gun > --- INVENTORY (25) --- Subdweller Power Source Subdweller Power Source Improved Treads Subdweller Monowheel Subdweller Monowheel VTOL Module VTOL Module VTOL Module Disposable Heat Sink Disposable Heat Sink High-capacity Storage Unit Structural Scanner Subdweller Optics Subdweller Optics Terrain Scan Processor Core Shielding Scrap Shield Heavy EM Pulse Gun Subdweller Laser Subdweller Laser Beam Cannon Assault Rifle Scrap Shield Fragment (50) Peak State ------------ > --- POWER ------------ Subdweller Power Source > --- PROPULSION ------- Light Treads Spiked Treads > --- UTILITY ---------- Huge Storage Unit Core Shielding > --- WEAPON ----------- Subdweller Beam Cannon Subdweller Machine Gun > --- INVENTORY -------- Subdweller Power Source Subdweller Power Source Improved Treads Subdweller Monowheel Subdweller Monowheel VTOL Module VTOL Module Disposable Heat Sink Disposable Heat Sink High-capacity Storage Unit Structural Scanner Subdweller Optics Subdweller Optics Terrain Scan Processor Core Shielding Scrap Shield Heavy EM Pulse Gun Subdweller Laser Subdweller Laser Beam Cannon Assault Rifle Scrap Shield Fragment [Rating: 15] Favorites ----------- Power Subdweller Power Source Engine Subdweller Power Source Propulsion Light Treads Treads Light Treads Leg Aluminum Leg Utility Core Shielding Storage Large Storage Unit Processor Targeting Computer Protection Core Shielding Weapon Subdweller Machine Gun Energy Gun Subdweller Laser Energy Cannon Subdweller Beam Cannon Ballistic Gun Subdweller Machine Gun Build | -11 -10 -10 -9 -9 ------- Run | Yrd Mat Sub Rec Scr Slots Evolved . | . . . . . Power . | . . . . . Propulsion . | . . . . . Utility . | . . . . . Weapon . | . . . . . Parts Attached 23 | 6 3 11 3 . Power 4 | 1 . 3 . . Engine 4 | 1 . 3 . . Core . | . . . . . Reactor . | . . . . . Propulsion 6 | 2 . 3 1 . Treads 4 | 2 . 1 1 . Leg 2 | . . 2 . . Wheel . | . . . . . Hover . | . . . . . Flight . | . . . . . Utility 6 | 1 3 1 1 . Device . | . . . . . Storage 3 | 1 1 . 1 . Processor 1 | . 1 . . . Hackware . | . . . . . Protection 2 | . 1 1 . . Artifact . | . . . . . Weapon 7 | 2 . 4 1 . Energy Gun 2 | 1 . 1 . . Energy Cannon 1 | . . 1 . . Ballistic Gun 4 | 1 . 2 1 . Ballistic Cannon . | . . . . . Launcher . | . . . . . Special Weapon . | . . . . . Impact Weapon . | . . . . . Slashing Weapon . | . . . . . Piercing Weapon . | . . . . . Special Melee Weapon . | . . . . . Unidentified Prototypes . | . . . . . Parts Lost 8 | . . 8 . . Power 2 | . . 2 . . Propulsion 4 | . . 4 . . Utility . | . . . . . Weapon 2 | . . 2 . . Highest Loss Streak 3 | . . 3 . . To Critical Strikes . | . . . . . Average Backups 15 | 2 5 11 15 22 Power 2 | . 1 2 2 2 Propulsion 3 | 1 3 2 3 6 Utility 6 | . . 6 7 9 Weapon 2 | . 1 1 3 5 Tool/Special . | . . . . . Unused Backups 21 | . . 2 . 19 Power 1 | . . . . 1 Propulsion 7 | . . 1 . 6 Utility 10 | . . 1 . 9 Weapon 3 | . . . . 3 Tool/Special . | . . . . . Average Slot Usage (%) 97 | . 95 94 99 100 Engine 12 | . 14 11 14 14 Treads 19 | . 28 11 27 28 Leg 7 | . . 14 . . Storage 14 | . 15 14 14 14 Protection 13 | . 2 14 14 14 Energy Gun 6 | . 14 12 . . Energy Cannon 8 | . . 2 14 14 Ballistic Gun 13 | . 14 12 13 14 Peak Build Rating 15 | 6 8 13 15 15 Average Rating 11 | 4 6 10 13 15 On Entrance 8 | . 6 7 12 15 Naked Turns . | . . . . . Heaviest Build 98 | 10 30 38 98 98 Greatest Support 40 | 40 40 40 40 40 Greatest Overweight (x) 7 | . . 7 2 2 Average Overweight (x) 1 | . . . . 2 Largest Inventory Capacity 25 | 8 15 15 25 25 Average Capacity 18 | 6 13 15 20 25 Most Carried 24 | 5 10 15 24 24 Average Carried 16 | 3 6 13 17 24 Final Capacity 25 | 8 15 15 25 25 Final Carried 24 | 5 9 15 24 24 Class Distribution -------------------- 100% | Mutant Dominant Class ---------------- Mutant | -10/Materials Mutant | -10/Subcaves Mutant | -9/Recycling Mutant | -9/Scraptown Resources | -11 -10 -10 -9 -9 ----------- Run | Yrd Mat Sub Rec Scr Matter Collected 474 | 201 . 245 28 . Remotely . | . . . . . Salvage Created 442 | . 52 337 53 . Parts 23 | . 2 18 3 . Haulers Intercepted . | . . . . . Recyclers Shooed . | . . . . . Parts Field Recycled . | . . . . . Retrieved Matter . | . . . . . Parts Self-Destructed 15 | . . 15 . . Prevented . | . . . . . Kills | -11 -10 -10 -9 -9 ------- Run | Yrd Mat Sub Rec Scr Combat Hostiles Destroyed 12 | . 3 8 1 . Guns 11 | . 3 7 1 . Cannons 1 | . . 1 . . Classes Destroyed 4 | . 1 2 1 . Swarmer 3 | . 3 . . . Grunt 2 | . . 2 . . Sentry 1 | . . . 1 . Subdweller 6 | . . 6 . . Best Kill Streak 2 | . 2 2 1 . Combat Bots Only 2 | . 2 2 1 . Max Kills in Single Turn 1 | . 1 1 1 . Gunslinging . | . . . . . Exploded . | . . . . . Melee . | . . . . . Uniques/NPCs Destroyed . | . . . . . Combat | -11 -10 -10 -9 -9 -------- Run | Yrd Mat Sub Rec Scr Hostile Shots Fired 109 | . 19 84 . 6 Missed 28 | . 6 22 . . Hits 81 | . 13 62 . 6 Projectile 81 | . 13 62 . 6 Critical Strikes 2 | . . 1 . 1 Damage Taken 1509 | . 103 1272 . 134 Core 266 | . 24 205 . 37 Absorbed by Shields . | . . . . . Redirected to Shielding 53 | . . 45 . 8 Core Remaining (%) 100 | 100 . . . . Volleys Fired 84 | . 11 51 1 21 Largest 2 | . 2 2 2 1 Hottest 140 | . 60 140 110 80 Shots Fired 141 | . 22 96 2 21 Gun 110 | . 22 87 1 . Cannon 31 | . . 9 1 21 Launcher . | . . . . . Special . | . . . . . Kinetic 56 | . 11 44 1 . Thermal 85 | . 11 52 1 21 Explosive . | . . . . . Electromagnetic . | . . . . . Robot Hit Streak 15 | . 6 13 15 1 Robot Miss Streak 2 | . 1 2 . 1 Penetration Max . | . . . . . Secondary Targets 2 | . . 2 . . Max Gunslinging Chain 1 | . . 1 . . Shots Hit Robots 89 | . 14 71 2 2 Core Hits 28 | . 5 21 1 1 Critical Kills 1 | . . 1 . . Critical Parts Destroyed 1 | . . 1 . . Critical Strikes 2 | . . 2 . . Destroy 2 | . . 2 . . Melee Attacks . | . . . . . Impact . | . . . . . Slashing . | . . . . . Piercing . | . . . . . Sneak Attacks . | . . . . . Combat Hostiles . | . . . . . Follow-up Attacks . | . . . . . Damage Inflicted 1203 | . 134 956 57 56 Guns 978 | . 134 819 25 . Cannons 221 | . . 137 28 56 Explosions . | . . . . . Melee . | . . . . . Ramming 4 | . . . 4 . Kinetic 475 | . 59 391 25 . Thermal 724 | . 75 565 28 56 Explosive . | . . . . . Electromagnetic . | . . . . . Impact . | . . . . . Slashing . | . . . . . Piercing . | . . . . . Highest Corruption . | . . . . . Average Corruption . | . . . . . Corruption Purged . | . . . . . Corruption Blocked . | . . . . . Overload Shots . | . . . . . Overflow Damage . | . . . . . Projectiles . | . . . . . Explosions . | . . . . . Melee . | . . . . . Knockbacks . | . . . . . Impact . | . . . . . Kinetic . | . . . . . Secondary . | . . . . . Self-Inflicted Damage . | . . . . . Shots . | . . . . . Rammed 1 | . . . 1 . Targets Rammed 1 | . . . 1 . Kicked . | . . . . . Crushed . | . . . . . Highest Temperature 270 | . 40 72 33 270 Average Temperature 72 | . 21 31 18 111 Received Heat Transfer 289 | . . 192 . 97 Siege Activations . | . . . . . Martial Activations . | . . . . . Shielding Activations . | . . . . . Robots Disrupted . | . . . . . Combat Hostiles . | . . . . . Robots Corrupted . | . . . . . Combat Hostiles . | . . . . . Parts Fried . | . . . . . Impact Corruptions . | . . . . . Robots Melted . | . . . . . Combat Hostiles . | . . . . . Parts Melted 3 | . . 3 . . Heat Transferred 1197 | . 175 935 37 50 Parts Sabotaged . | . . . . . Parts Stolen . | . . . . . Parts Stripped . | . . . . . Power Chain Reactions . | . . . . . Alert | -11 -10 -10 -9 -9 ------- Run | Yrd Mat Sub Rec Scr Maximum Alert Level . | . . . . . Low Security (%) 100 | 100 100 . 100 . Level 1 . | . . . . . Level 2 . | . . . . . Level 3 . | . . . . . Level 4 . | . . . . . Level 5 . | . . . . . High Security . | . . . . . Max Security . | . . . . . Peak Influence 68 | . 65 . 68 . Initial . | . . . . . Average 19 | . 29 . 18 . Influence Increases 345 | . 85 80 180 . Destroy 0b10 Robot/C 120 | . 60 40 20 . Destroy Leader 20 | . 10 10 . . Successful Hack 40 | . . . 40 . Select Force Hacks 120 | . . . 120 . Lose Combat Pursuer 45 | . 15 30 . . Influence Decreases 345 | . 40 125 180 . Entered New Map 22 | . . 22 . . Time Decay 323 | . 40 103 180 . Squads Dispatched . | . . . . . Investigation . | . . . . . Extermination . | . . . . . Reinforcement . | . . . . . Assault . | . . . . . Garrison . | . . . . . Intercept . | . . . . . Searches Triggered . | . . . . . Construction Impeded . | . . . . . Haulers Reinforced . | . . . . . Active Scanning Responses . | . . . . . Cargo Convoy Interrupts . | . . . . . Stealth | -11 -10 -10 -9 -9 --------- Run | Yrd Mat Sub Rec Scr Distress Signals . | . . . . . Communications Jammed . | . . . . . Distress Signals . | . . . . . Times Spotted 17 | . 3 13 . 1 Peak Tracking Total 6 | . 3 3 . 6 Tactical Retreats 5 | . 1 4 . . Traps | -11 -10 -10 -9 -9 ------- Run | Yrd Mat Sub Rec Scr Traps Triggered . | . . . . . Indirectly . | . . . . . Trap Hack Attempts . | . . . . . Triggered . | . . . . . Disarmed . | . . . . . Reprogrammed . | . . . . . Reused . | . . . . . Traps Extracted . | . . . . . Installed . | . . . . . Triggered . | . . . . . Machines | -11 -10 -10 -9 -9 ---------- Run | Yrd Mat Sub Rec Scr Machines Disabled 3 | . . . . 3 Max in Single Turn 1 | . . . . 1 Machines Repaired . | . . . . . Machines Dismantled . | . . . . . Machines Sabotaged . | . . . . . Overloaded Fab Kills . | . . . . . Hacking | -11 -10 -10 -9 -9 --------- Run | Yrd Mat Sub Rec Scr Machines Accessed 8 | . . . 8 . Terminals 4 | . . . 4 . Fabricators . | . . . . . Repair Stations . | . . . . . Recycling Units 4 | . . . 4 . Scanalyzers . | . . . . . Garrison Access . | . . . . . Total Hacks 21 | . . . 21 . Successful 9 | . . . 9 . Failed 12 | . . . 12 . Catastrophic 2 | . . . 2 . Database Lockouts . | . . . . . Manual 16 | . . . 16 . Terminals 14 | . . . 14 . Fabricators . | . . . . . Repair Stations . | . . . . . Recycling Units 7 | . . . 7 . Scanalyzers . | . . . . . Garrison Access . | . . . . . Terminal Hacks 3 | . . . 3 . Part Schematic 2 | . . . 2 . Prototype ID Bank 1 | . . . 1 . Fabricator Hacks . | . . . . . Repair Station Hacks . | . . . . . Recycling Unit Hacks 1 | . . . 1 . Retrieve Components 1 | . . . 1 . Scanalyzer . | . . . . . Garrison Access Hacks . | . . . . . Unauthorized Hacks 5 | . . . 5 . Terminals 1 | . . . 1 . Botnet 1 | . . . 1 . Fabricators . | . . . . . Repair Stations . | . . . . . Recycling Units 4 | . . . 4 . Tunnel 4 | . . . 4 . Scanalyzers . | . . . . . Garrison Access . | . . . . . Data Cores Recovered . | . . . . . Used . | . . . . . Hacking Detections 4 | . . . 4 . Full Trace Events 4 | . . . 4 . Feedback Events . | . . . . . Feedback Blocked . | . . . . . Robot Schematics Acquired . | . . . . . Robots Built . | . . . . . Authchips . | . . . . . Time . | . . . . . Total Robot Build Rating . | . . . . . Part Schematics Acquired 2 | . . . 2 . Parts Built . | . . . . . Authchips . | . . . . . Time . | . . . . . Total Part Build Rating . | . . . . . Parts Repaired . | . . . . . Time . | . . . . . Parts Recycled . | . . . . . Recycled Matter . | . . . . . Retrieved Matter . | . . . . . Retrieved Components . | . . . . . Parts Scanalyzed . | . . . . . Part Schematics Acquired . | . . . . . Parts Damaged . | . . . . . Bothacking | -11 -10 -10 -9 -9 ------------ Run | Yrd Mat Sub Rec Scr Used RIF Installer . | . . . . . Robots Hacked . | . . . . . Non-combat . | . . . . . Combat . | . . . . . Robot Hacks Applied . | . . . . . Relay Couplers Released . | . . . . . Fabnet Peak Effective % . | . . . . . Robots Rewired . | . . . . . Allies Hacked . | . . . . . Hacks Repelled . | . . . . . Allies | -11 -10 -10 -9 -9 -------- Run | Yrd Mat Sub Rec Scr Total Allies . | . . . . . Largest Group . | . . . . . Highest-Rated Group . | . . . . . Highest-Rated Ally . | . . . . . Total Orders . | . . . . . Ally Attacks . | . . . . . Total Damage . | . . . . . Kills . | . . . . . Allies Corrupted . | . . . . . Allies Melted . | . . . . . Intel | -11 -10 -10 -9 -9 ------- Run | Yrd Mat Sub Rec Scr Active Infowar (turns) . | . . . . . Robot Analysis Total . | . . . . . Derelict Logs Recovered . | . . . . . Drone Launches . | . . . . . Drone Recoveries . | . . . . . Exploration | -11 -10 -10 -9 -9 ------------- Run | Yrd Mat Sub Rec Scr Turns Passed 3824 | 73 134 1804 665 1148 Spaces Moved 1470 | 41 56 765 287 321 Core 13 | 5 . 8 . . Treads 1100 | 36 56 400 287 321 Legs 357 | . . 357 . . Wheels . | . . . . . Hover . | . . . . . Flight . | . . . . . Fastest Speed 50 | 50 160 160 160 340 Average Speed 237 | 146 160 208 226 340 Slowest Speed 400 | 160 160 400 340 340 Overloaded Moves . | . . . . . Propulsion Burnouts . | . . . . . Robots Hopped . | . . . . . Potential Cave-ins 2 | . . . . 2 Cave-ins Triggered . | . . . . . Exploration Rate (%) 31 | 4 10 55 52 35 Regions Visited 4 Branch Regions 3 Pre-discovered Areas 4 | . . . 4 . Known Exits Taken . | . . . . . Unknown Exits Taken 4 | 1 1 1 1 . Scrap Searched . | . . . . . Spaces Dug 10 | . . 1 . 9 Terrain Destroyed 18 | . . 3 . 15 Melee . | . . . . . Projectile 18 | . . 3 . 15 AOE . | . . . . . Terrain Rammed . | . . . . . Walls Destroyed . | . . . . . Machines Disabled . | . . . . . Actions | -11 -10 -10 -9 -9 --------- Run | Yrd Mat Sub Rec Scr Total 1677 | 51 81 886 302 357 Wait 63 | . 5 42 1 15 Move 1466 | 40 55 764 286 321 Hop . | . . . . . Pick Up 33 | 5 5 14 9 . Fast Attach 11 | 6 2 2 1 . Attach 7 | . 1 6 . . Detach . | . . . . . Swap 5 | . . 3 2 . Drop 7 | . 2 4 1 . Fire 84 | . 11 51 1 21 Melee . | . . . . . Ram . | . . . . . Kick . | . . . . . Crush 1 | . . . 1 . Escape Stasis . | . . . . . Rewire . | . . . . . Trap . | . . . . . Miscellaneous . | . . . . . Route ------- -11/Scrapyard -10/Materials -10/Subcaves -9/Recycling -9/Scraptown History --------- Turn | Location | Event 5 | -11/Scrapyard | Discovered new exit (range 15) 74 | -11/Scrapyard | Entered Materials 199 | -10/Materials | Discovered new exit (range 7) 208 | -10/Materials | Entered Subcaves 317 | -10/Subcaves | Build established: Mutant 617 | -10/Subcaves | A swath of the cavern ceiling suddenly collapsed 745 | -10/Subcaves | Lost 3 parts (1p1n1w) 992 | -10/Subcaves | Shifting Twisted Machinery released Sub. Beam Cannon 1318 | -10/Subcaves | A swath of the cavern ceiling suddenly collapsed 1617 | -10/Subcaves | Core integrity fell below 50% 1652 | -10/Subcaves | Core integrity fell below 20% 2002 | -10/Subcaves | Discovered new exit (range 4) 2012 | -10/Subcaves | Entered Recycling 2592 | -9/Recycling | Scanned before Scraplab entrance 2643 | -9/Recycling | Entered Scraplab 2670 | -9/Recycling | Discovered new exit (range 3) 2677 | -9/Recycling | Entered Scraptown 2878 | -9/Scraptown | Visited UFD Registry 2878 | -9/Scraptown | Registered with UFD as "Arcninja" 2987 | -9/Scraptown | Visited Scrap Suit Storage 3089 | -9/Scraptown | Visited Scrapoid Pod Storage 3160 | -9/Scraptown | Visited Junk Repository 3351 | -9/Scraptown | Visited Curators Association 3398 | -9/Scraptown | Visited Scrapoid Research Area 3463 | -9/Scraptown | Visited DA-N13 Charitable Foundation 3706 | -9/Scraptown | Attacked by Scraptown defenders 3825 | -9/Scraptown | Destroyed by SQ-092(j) with Overtuned Pulse Rifle Last Messages --------------- 03381_ QG-TTN(c): "Come one, come all! See for yourself a fine selection of the many wondrous pieces in our collection!" 03398_ LOCAL NARROWCAST: Scrapoid Research Area. 03463_ LOCAL NARROWCAST: DA-N13 Charitable Foundation at your service. M1-K8E(j): This is the DCF demo area. To one side we've placed a regular old slapdash Scrap pile, and on the other an experimental superscrap pile. Can you tell the difference from the outside? 03638_ CB-7CN(p) closely examines the mainframe. 03706_ Super Scrap Suits breached. 03706_ ANNOUNCEMENT: Intruder alert! Defend Scraptown! 03708_ LOCAL NARROWCAST: You don't have permission to be in here, but that's okay because it's just doing its job as a honeypot for traitors, TRAITOR! 03771_ Machine disabled. 03798_ ANNOUNCEMENT: Triborg tracking relay activated. Stay clear or you only have yourself to blame! 03818_ Critical hit (Burn: +50). 03821_ SQ-092(j) heat spikes uncontrollably. 03822_ Machine disabled. Map ----- +----------------------------------------------------+ | ?????????????????????????????????????????????????? | | ?????????????????????????????????????????????????? | | ?????????????????????????????????????????????????? | | ?????????????????????????????????????????????????? | | ?????????????????????????????????????????????????? | | ?????????????????????????????????????????????????? | | ?????????????????????????????????????????????????? | | ?????????????????????????????????????????????????? | | ?????????????????????????????????????????????????? | | ?????????????????????????????????????????????????? | | ?????????????????????????????????????????????????? | | ?????????????????????????????????????????????????? | | ????????????????????#####????????????????????????? | | ????????????????????# #####????????????????????? | | ????????????????????##"#""""##???????????????????? | | ???????????????????##;###" "#???????????????????? | | ??????????????????## ! "#???????????????????? | | ??????????????????#"" "# "#???????????????????? | | ??????????????????### X#####???????????????????? | | ???????????????????#" !"#???????######???????? | | ???????????????????#"! !"#??????""!! !!??###### | | ???????????????????#"! !"#?????"""!! !???#""""" | | ???????????????????#"! !"#?????"!!!! "???#" ! | | ???????????????????#"! "#?????? ""??#" | | ???????????????????## ##??????? ????? | | ???????????????????# @ #???????? ???????? | | ???????????????????######;j##????????# #?????????# | | ??????????###????????##### ########### ########### | | ???????? ????????#"""" """""""""" """"""""""" | | ????? ????????#" | | ??? #???????#" | | ?? #???????#" | | ??? #???????#" | | ???# #????####" | | ???# #????"""" """""""""""""""""""""" | | ???# #????"""" """""""""""""""""""""" | | ???# #????"""" ""###### ############ | | ???# #????"""" ""#???? ??????????? | | ???# #???#"""" ""#??? ?????????? | | ???# ###?#"""" ""#???"" ""?????????? | | ??# ""#"#"""" ""#? "? ??????????? | | ?# """"#"""" ""# " ? ??????###### | | ?# ""#?#####" "" "???? | | # ###?????#" "" "???? | | # #########" ""# " ????????###### | | ""#? ""? ???????????? | | # ""#?? ?" "??????????? | | #??# ""#???? ??????????? | | ???# ""#???? ??????????? | | #### ""###### ############ | +----------------------------------------------------+ Best States ------------- Heat Dissipation 25 Energy Generation 15 Energy Capacity 200 Matter Stores 300 Matter Capacity 300 Sight Range 16 Terrain Scan Density 10 Core Shielding 20 Evasion (%) 40 Targeting Accuracy 5 Recoil Reduction 2 Item Schematics ----------------- Imp. Light Armor Plating | -9/Recycling | Hacked Hcp. Storage Unit | -9/Recycling | Hacked Robot Schematics ------------------ None Fabricated ------------ Nothing Repaired ---------- Nothing Alien Tech Used ----------------- None Achievements -------------- None Challenges ------------ None Game ------ Seed AngularGravitonHarness Manual? 0 Play Time 00:11:37 Cumulative 249.1 hours Start 2025.05.09 @ 17:45:57 End 2025.05.09 @ 17:56:11 Sessions 1 Manual Loads 0 Difficulty Rogue Special Mode None Game No. 170 Rogue 170 Adventurer 0 Explorer 0 Win Type - Total 13 Types 6/0/5/1/0/0/0/1/0/0 Lore% 76 Gallery% 70 Achievement% 73 Wizard Run 0 Options --------- Layout 0 ASCII 0 Keyboard 0 Movement Mouse Keybinds 0 Fullscreen 2 Font 24/Smallcaps Map View 76x50 Zoom Use 0% Tactical HUD 1 Map Filters NONE Filters NONE Steam 1 RUN: a1427340-0eb0-47b7-9fbd-46accd1bc0c2